fUSD/lending_fUSD_20260126
["ID","MTS","AMOUNT","RATE_DAILY","PERIOD"]
[403637172,1769437837082,-500.0,0.00017973,2]
[403637173,1769437837091,-665.0,0.00017973,2]
[403637174,1769437837102,-250.0,0.00017973,2]
[403637175,1769437837112,-500.0,0.00017973,2]
[403637176,1769437837122,-500.0,0.00017973,2]
[403637177,1769437837132,-495.0,0.00017973,2]
[403637178,1769437837142,-211.75615107,0.00017973,2]
[403637179,1769437837152,-1500.0,0.0001798,2]
[403637180,1769437837162,-152.21,0.00017989,2]
[403637181,1769437837173,-152.21,0.00017989,2]
[403637182,1769437837183,-412.69872732,0.00017989,2]
[403637183,1769437837193,-500.0,0.00017989,2]
[403637184,1769437837202,-500.0,0.00017989,2]
[403637185,1769437837212,-500.0,0.00017989,2]
[403637186,1769437837222,-500.0,0.00017989,2]
[403637187,1769437837232,-500.0,0.00017989,2]
[403637188,1769437837241,-500.0,0.00017989,2]
[403637189,1769437837251,-500.0,0.00017989,2]
[403637190,1769437837262,-500.0,0.00017989,2]
[403637191,1769437837271,-500.0,0.00017989,2]
[403637192,1769437837282,-500.0,0.00017989,2]
[403637193,1769437837291,-500.0,0.00017989,2]
[403637194,1769437837301,-500.0,0.00017989,2]
[403637195,1769437837311,-500.0,0.00017989,2]
[403637196,1769437837321,-197.65029769,0.0001799,2]
[403637197,1769437837332,-197.65029769,0.0001799,2]
[403637198,1769437837343,-151.0,0.00017997,2]
[403637199,1769437837354,-500.0,0.00017998,2]
[403637200,1769437837364,-66482.9544733,0.00017999,2]
[403637201,1769437837373,-5725.2170953,0.00017999,2]
[403637202,1769437837383,-500.0,0.00017999,2]
[403637203,1769437837395,-507.4251083,0.00017999,2]
[403637204,1769437837406,-85247.3553026,0.00017999,2]
[403637205,1769437837417,-500.0,0.00017999,2]
[403637206,1769437837426,-500.0,0.00017999,2]
[403637207,1769437837436,-500.0,0.00017999,2]
[403637208,1769437837445,-645.18737721,0.00017999,2]
[403637209,1769437837455,-26965.9838185,0.00017999,2]
[403637210,1769437837465,-500.0,0.00017999,2]
[403637211,1769437837474,-500.0,0.00017999,2]
[403637212,1769437837483,-500.0,0.00017999,2]
[403637213,1769437837493,-166.8913949,0.00017999,2]
[403637214,1769437837503,-1764.7703222,0.00017999,2]
[403637215,1769437837513,-500.0,0.00017999,2]
[403637216,1769437837523,-500.0,0.00017999,2]
[403637217,1769437837533,-500.0,0.00017999,2]
[403637218,1769437837543,-181.45092145,0.00017999,2]
[403637219,1769437837553,-136298.6493636,0.00017999,2]
[403637220,1769437837562,-500.0,0.00017999,2]
[403637221,1769437837572,-500.0,0.00017999,2]
[403637222,1769437837582,-500.0,0.00017999,2]
[403637223,1769437837592,-500.0,0.00017999,2]
[403637224,1769437837602,-500.0,0.00017999,2]
[403637225,1769437837611,-510.98377513,0.00017999,2]
[403637226,1769437837621,-300.0,0.00017999,2]
[403637227,1769437837630,-502.89153827,0.00017999,2]
[403637228,1769437837640,-500.0,0.00017999,2]
[403637229,1769437837650,-500.0,0.00017999,2]
[403637230,1769437837660,-500.0,0.00017999,2]
[403637231,1769437837671,-500.0,0.00017999,2]
[403637232,1769437837685,-500.0,0.00017999,2]
[403637233,1769437837694,-500.0,0.00017999,2]
[403637234,1769437837704,-543.5532787,0.00017999,2]
[403637235,1769437837715,-503.74300239,0.00017999,2]
[403637236,1769437837725,-500.0,0.00017999,2]
[403637237,1769437837734,-500.0,0.00017999,2]
[403637238,1769437837745,-500.0,0.00017999,2]
[403637239,1769437837754,-500.0,0.00017999,2]
[403637240,1769437837764,-500.0,0.00017999,2]
[403637241,1769437837774,-500.0,0.00017999,2]
[403637242,1769437837784,-527.20053944,0.00017999,2]
[403637243,1769437837794,-1068.6630399,0.00017999,2]
[403637244,1769437837805,-500.0,0.00017999,2]
[403637245,1769437837815,-500.0,0.00017999,2]
[403637247,1769437837825,-500.0,0.00017999,2]
[403637249,1769437837836,-500.0,0.00017999,2]
[403637250,1769437837846,-500.0,0.00017999,2]
[403637251,1769437837857,-500.0,0.00017999,2]
[403637252,1769437837868,-500.0,0.00017999,2]
[403637254,1769437837879,-500.0,0.00017999,2]
[403637255,1769437837889,-500.0,0.00017999,2]
[403637256,1769437837900,-500.0,0.00017999,2]
[403637257,1769437837910,-500.0,0.00017999,2]
[403637258,1769437838165,-500.0,0.00017999,2]
[403637259,1769437838206,-500.0,0.00017999,2]
[403637260,1769437838216,-500.0,0.00017999,2]
[403637261,1769437838227,-500.0,0.00017999,2]
[403637262,1769437838237,-500.0,0.00017999,2]
[403637263,1769437838247,-500.0,0.00017999,2]
[403637264,1769437838256,-500.0,0.00017999,2]
[403637265,1769437838266,-500.0,0.00017999,2]
[403637266,1769437838276,-500.0,0.00017999,2]
[403637267,1769437838286,-500.0,0.00017999,2]
[403637268,1769437838296,-500.0,0.00017999,2]
[403637269,1769437838306,-189.07820709,0.00017999,2]
[403637270,1769437838315,-500.0,0.00017999,2]
[403637271,1769437838325,-500.0,0.00017999,2]
[403637273,1769437838336,-500.0,0.00017999,2]
[403637275,1769437838347,-468.21788189,0.00017999,2]
[403637277,1769437838356,-500.0,0.00017999,2]
[403637279,1769437838366,-500.0,0.00017999,2]
[403637281,1769437838375,-500.0,0.00017999,2]
[403637283,1769437838385,-1000.0,0.00018,2]
[403637285,1769437838395,-433.36232072,0.00018,2]
[403637287,1769437838405,-2620441.75792297,0.00018,2]
[403637289,1769437838416,-7339830.52250164,0.00018,2]
[403637291,1769437838426,-710311.8294757,0.00018,2]
[403637293,1769437838436,-1846461.13538251,0.00018,2]
[403637295,1769437838445,-1511.36196885,0.00018,2]
[403637297,1769437838455,-150.0,0.00018,7]
[403637299,1769437838465,-1000.0,0.00018,2]
[403637301,1769437838475,-1000.0,0.00018,2]
[403637303,1769437838484,-1000.0,0.00018,2]
[403637305,1769437838494,-1000.0,0.00018,2]
[403637307,1769437838504,-1000.0,0.00018,2]
[403637309,1769437838513,-1000.0,0.00018,2]
[403637311,1769437838523,-1000.0,0.00018,2]
[403637313,1769437838535,-1000.0,0.00018,2]
[403637315,1769437838545,-1000.0,0.00018,2]
[403637317,1769437838555,-1000.0,0.00018,2]
[403637319,1769437838564,-1000.0,0.00018,2]
[403637321,1769437838574,-1000.0,0.00018,2]
[403637323,1769437838585,-1000.0,0.00018,2]
[403637325,1769437838594,-1000.0,0.00018,2]
[403637327,1769437838603,-1000.0,0.00018,2]
[403637329,1769437838613,-1000.0,0.00018,2]
[403637331,1769437838623,-1000.0,0.00018,2]
[403637333,1769437838632,-1000.0,0.00018,2]
[403637335,1769437838641,-483.56532775,0.00018,2]
[403637337,1769437838650,-150.0,0.00018,2]
[403637338,1769437838659,-5805.0154013,0.00018,2]
[403637341,1769437838669,-150.0,0.00018,2]
[403637343,1769437838682,-41248.94739202,0.00018,2]
[403637345,1769437838691,-150.0,0.00018,2]
[403637347,1769437838701,-5002.21677079,0.00018,2]
[403637349,1769437838710,-500.0,0.00018,2]
[403637351,1769437838722,-500.0,0.00018,2]
[403637353,1769437838731,-500.0,0.00018,2]
[403637355,1769437838740,-500.0,0.00018,2]
[403637357,1769437838750,-500.0,0.00018,2]
[403637359,1769437838759,-500.0,0.00018,2]
[403637361,1769437838769,-500.0,0.00018,2]
[403637363,1769437838778,-295.70165657,0.00018,2]
[403637365,1769437838787,-1000.0,0.00018,2]
[403637367,1769437838796,-1000.0,0.00018,2]
[403637368,1769437838805,-1000.0,0.00018,2]
[403637370,1769437838814,-1000.0,0.00018,2]
[403637372,1769437838824,-1000.0,0.00018,2]
[403637374,1769437838835,-1000.0,0.00018,2]
[403637376,1769437838844,-1000.0,0.00018,2]
[403637378,1769437838854,-1000.0,0.00018,2]
[403637380,1769437838864,-1000.0,0.00018,2]
[403637382,1769437838874,-510.38657736,0.00018,2]
[403637384,1769437838886,-2646.79155626,0.00018,2]
[403637386,1769437838895,-5576523.86483289,0.00018,2]
[403637395,1769437838967,-1246.151512,0.00018,2]
[403637520,1769437840367,-158.03767839,0.00016547,2]
[403637522,1769437840376,-456.42469421,0.00017223,2]
[403637524,1769437840386,-49.21779648,0.000179,2]
[403637526,1769437840397,-407.20689773,0.000179,2]
[403637528,1769437840407,-1551.98892874,0.00018,2]
[403637531,1769437840418,-10654.70940578,0.00018,2]
[403637533,1769437840429,-903.82815811,0.00018,2]
[403637535,1769437840440,-726.4,0.00018,2]
[403637596,1769437841211,-158.03767839,0.00016998,2]
[403637598,1769437841220,-7095.58068114,0.00018,2]
[403637601,1769437841240,-3469133.04335239,0.00018,2]
[403637603,1769437841249,-20713.48464863,0.00018,4]
[403637605,1769437841258,-2043753.82931974,0.00018,2]
[403637811,1769439032092,-158.55,0.00012546,2]
[403637812,1769439032102,-174.28016402,0.00012546,2]
[403637813,1769439032112,-229.58821508,0.00012546,2]
[403637815,1769439032122,-256.02963433,0.00012546,2]
[403637817,1769439032131,-107.05554441,0.00012546,2]
[403637818,1769439032163,-145.94445559,0.00012546,2]
[403637819,1769439032173,-300.0,0.00012932,2]
[403637820,1769439032183,-300.0,0.00013499,2]
[403637821,1769439032193,-1200.0,0.00013499,2]
[403637822,1769439032202,-300.0,0.00013499,2]
[403637823,1769439032212,-300.0,0.00013499,2]
[403637824,1769439032222,-11600.0,0.000135,2]
[403637825,1769439032232,-4330.96485022,0.00013565,2]
[403637826,1769439032244,-974.05877356,0.00013565,2]
[403637827,1769439032309,-391.13262476,0.00013565,2]
[403637828,1769439032320,-3688.77375146,0.00013565,2]
[403637829,1769439032330,-150.0,0.00013799,2]
[403637830,1769439032340,-483.01,0.000138,2]
[403637831,1769439032349,-2500.0,0.000138,2]
[403637832,1769439032359,-195.0,0.000138,2]
[403637833,1769439032369,-600.0,0.000138,2]
[403637834,1769439032379,-250.0,0.000138,2]
[403637835,1769439032389,-195.0,0.000138,2]
[403637836,1769439032398,-150.28234842,0.000138,2]
[403637837,1769439032408,-231.07199046,0.000138,2]
[403637838,1769439032534,-368.92800954,0.000138,2]
[403637839,1769439032543,-484.13365019,0.000138,2]
[403637840,1769439032554,-115.86634981,0.000138,2]
[403637841,1769439032564,-600.0,0.000138,2]
[403637842,1769439032573,-173.35855047,0.000138,2]
[403637843,1769439032585,-213.37662951,0.000138,2]
[403637844,1769439032595,-250.0,0.000138,2]
[403637845,1769439032605,-195.0,0.000138,2]
[403637846,1769439032615,-4304.53405516,0.000138,2]
[403637847,1769439032625,-2500.0,0.000138,2]
[403637848,1769439032634,-195.0,0.000138,2]
[403637849,1769439032644,-483.01,0.00014074,2]
[403637850,1769439032653,-217.69861453,0.00014348,2]
[403637851,1769439032665,-265.31138547,0.00014348,2]
[403637852,1769439032675,-223.09861453,0.00014622,2]
[403637853,1769439032686,-259.91138547,0.00014622,2]
[403637854,1769439032696,-1357.43856828,0.00014849,2]
[403637855,1769439032708,-322.56143172,0.00014849,2]
[403637856,1769439032717,-207.1803665,0.00014887,2]
[403637873,1769439038386,-460.54347616,0.00014886,2]
[403637874,1769439038399,-1.69497412,0.00014886,2]
[403637875,1769439038409,-207.89511552,0.00014886,2]
[403637876,1769439038419,-1115.59991036,0.00014887,2]
[403637877,1769439038432,-2444.83323628,0.00014887,2]
[403637878,1769439038453,-6814.94453654,0.00014887,2]
[403637879,1769439038472,-713.71647197,0.00014887,2]
[403637880,1769439038488,-2200.0,0.00014887,2]
[403637881,1769439038529,-724.5421722,0.00014887,2]
[403637883,1769439038542,-1089.77180042,0.00014887,2]
[403637954,1769439040335,-3889.325472,0.00014887,2]
[403637955,1769439040403,-306.03254391,0.00014887,2]
[403637956,1769439040415,-33046.75348982,0.00014887,2]
[403637957,1769439040424,-483.02,0.00014896,2]
[403637958,1769439040438,-161.0613,0.00015093,2]
[403637959,1769439040449,-1000.0,0.00015193,2]
[403637960,1769439040459,-2815.38879959,0.00015282,2]
[403637961,1769439040469,-151.0,0.00015283,2]
[403637962,1769439040479,-151.0,0.00015283,2]
[403637963,1769439040488,-151.0,0.00015283,2]
[403637964,1769439040497,-151.0,0.00015283,2]
[403637965,1769439040506,-151.0,0.00015283,2]
[403637966,1769439040516,-151.0,0.00015283,2]
[403637967,1769439040526,-151.0,0.00015283,2]
[403637968,1769439040535,-151.0,0.00015283,2]
[403637969,1769439040544,-151.0,0.00015283,2]
[403637970,1769439040554,-151.0,0.00015283,2]
[403637971,1769439040563,-151.0,0.00015283,2]
[403637972,1769439040572,-500.0,0.00015292,2]
[403637973,1769439040586,-500.0,0.00015292,2]
[403637974,1769439040598,-500.0,0.00015292,2]
[403637975,1769439040608,-500.0,0.00015292,2]
[403637976,1769439040617,-500.0,0.00015292,2]
[403637977,1769439040626,-500.0,0.00015292,2]
[403637978,1769439040635,-500.0,0.00015292,2]
[403637979,1769439040645,-500.0,0.00015292,2]
[403637980,1769439040654,-500.0,0.00015292,2]
[403637981,1769439040664,-631.2396331,0.00015292,2]
[403637982,1769439040673,-500.0,0.00015292,2]
[403637983,1769439040682,-500.0,0.00015292,2]
[403637984,1769439040692,-159.57188087,0.00015292,2]
[403637985,1769439040701,-500.0,0.00015292,2]
[403637986,1769439040711,-500.0,0.00015292,2]
[403637987,1769439040721,-500.0,0.00015292,2]
[403637988,1769439040730,-500.0,0.00015292,2]
[403637989,1769439040740,-500.0,0.00015292,2]
[403637990,1769439040749,-500.0,0.00015292,2]
[403637991,1769439040758,-500.0,0.00015292,2]
[403637992,1769439040768,-500.0,0.00015292,2]
[403637993,1769439040777,-500.0,0.00015292,2]
[403637994,1769439040786,-500.0,0.00015292,2]
[403637995,1769439040797,-500.0,0.00015292,2]
[403637996,1769439040807,-500.0,0.00015292,2]
[403637997,1769439040820,-500.0,0.00015292,2]
[403637998,1769439040830,-500.0,0.00015292,2]
[403637999,1769439040840,-500.66687926,0.00015292,2]
[403638000,1769439040849,-500.0,0.00015292,2]
[403638001,1769439040858,-500.0,0.00015292,2]
[403638002,1769439040868,-500.0,0.00015292,2]
[403638003,1769439040878,-500.0,0.00015292,2]
[403638004,1769439040888,-500.0,0.00015292,2]
[403638005,1769439040897,-500.0,0.00015292,2]
[403638006,1769439040907,-500.0,0.00015292,2]
[403638007,1769439040916,-500.0,0.00015292,2]
[403638008,1769439040925,-500.0,0.00015292,2]
[403638009,1769439040936,-512.6177601,0.00015292,2]
[403638010,1769439040945,-500.0,0.00015292,2]
[403638011,1769439040954,-500.0,0.00015292,2]
[403638012,1769439040964,-500.0,0.00015292,2]
[403638013,1769439040973,-500.0,0.00015292,2]
[403638014,1769439040983,-506.89314024,0.00015292,2]
[403638015,1769439040993,-500.0,0.00015292,2]
[403638016,1769439041003,-500.0,0.00015292,2]
[403638017,1769439041013,-500.0,0.00015292,2]
[403638018,1769439041022,-500.0,0.00015292,2]
[403638019,1769439041032,-500.0,0.00015292,2]
[403638020,1769439041042,-500.0,0.00015292,2]
[403638021,1769439041054,-500.0,0.00015292,2]
[403638022,1769439041065,-500.0,0.00015292,2]
[403638023,1769439041076,-500.0,0.00015292,2]
[403638024,1769439041085,-500.0,0.00015292,2]
[403638025,1769439041094,-500.0,0.00015292,2]
[403638026,1769439041104,-500.0,0.00015292,2]
[403638027,1769439041113,-500.0,0.00015292,2]
[403638028,1769439041123,-500.0,0.00015292,2]
[403638029,1769439041132,-500.0,0.00015292,2]
[403638030,1769439041142,-500.0,0.00015292,2]
[403638031,1769439041151,-500.0,0.00015292,2]
[403638032,1769439041161,-500.0,0.00015292,2]
[403638033,1769439041171,-500.0,0.00015292,2]
[403638034,1769439041181,-500.0,0.00015292,2]
[403638035,1769439041191,-500.0,0.00015292,2]
[403638036,1769439041200,-500.0,0.00015292,2]
[403638037,1769439041214,-500.0,0.00015292,2]
[403638038,1769439041224,-500.0,0.00015292,2]
[403638039,1769439041234,-500.0,0.00015292,2]
[403638040,1769439041244,-500.0,0.00015292,2]
[403638041,1769439041253,-500.0,0.00015292,2]
[403638042,1769439041263,-500.0,0.00015292,2]
[403638043,1769439041273,-500.0,0.00015292,2]
[403638044,1769439041282,-500.0,0.00015292,2]
[403638045,1769439041292,-508.43177651,0.00015292,2]
[403638046,1769439041302,-500.0,0.00015292,2]
[403638047,1769439041313,-500.0,0.00015292,2]
[403638048,1769439041322,-500.0,0.00015292,2]
[403638049,1769439041332,-631.62876528,0.00015292,2]
[403638050,1769439041343,-506.5749784,0.00015292,2]
[403638051,1769439041352,-500.0,0.00015292,2]
[403638052,1769439041362,-500.0,0.00015292,2]
[403638053,1769439041371,-509.94585687,0.00015292,2]
[403638054,1769439041381,-500.0,0.00015292,2]
[403638055,1769439041390,-500.0,0.00015292,2]
[403638056,1769439041399,-500.0,0.00015292,2]
[403638057,1769439041409,-500.0,0.00015292,2]
[403638058,1769439041418,-500.0,0.00015292,2]
[403638059,1769439041427,-500.0,0.00015292,2]
[403638060,1769439041437,-500.0,0.00015337,3]
[403638061,1769439041446,-151.0,0.00015346,2]
[403638062,1769439041456,-204.40290129,0.00015404,2]
[403638063,1769439041465,-1000.0,0.0001545,2]
[403638065,1769439041475,-2516.84859063,0.00015516,2]
[403638066,1769439041485,-4698.1,0.00015532,2]
[403638068,1769439041494,-151.0,0.00015545,2]
[403638070,1769439041503,-16197.82,0.00015572,2]
[403638071,1769439041512,-517.0,0.00015616,2]
[403638072,1769439041522,-2516.84859061,0.00015781,2]
[403638073,1769439041531,-2516.84859061,0.00016046,2]
[403638074,1769439041541,-1666.49,0.00016231,2]
[403638075,1769439041551,-1666.49,0.00016257,2]
[403638076,1769439041561,-1666.49,0.00016282,2]
[403638077,1769439041570,-1666.49,0.00016308,2]
[403638078,1769439041580,-2516.84859061,0.00016311,2]
[403638079,1769439041593,-1666.49,0.00016333,2]
[403638080,1769439041603,-237.0846,0.00016338,2]
[403638081,1769439041612,-4118.5559,0.00016338,2]
[403638082,1769439041622,-41506.1193,0.00016338,2]
[403638083,1769439041631,-6718.3386,0.00016338,2]
[403638084,1769439041641,-401.23235271,0.0001634,2]
[403638086,1769439042024,-1666.49,0.00016359,2]
[403638087,1769439042035,-1666.49,0.00016385,2]
[403638088,1769439042044,-1666.49,0.0001641,2]
[403638089,1769439042055,-1666.49,0.00016436,2]
[403638090,1769439042065,-542.71122847,0.00016438,2]
[403638091,1769439042075,-798.0,0.00016438,2]
[403638092,1769439042084,-995.09,0.00016448,2]
[403638093,1769439042094,-1666.49,0.00016462,2]
[403638094,1769439042103,-1666.49,0.00016487,2]
[403638095,1769439042112,-1666.49,0.00016513,2]
[403638096,1769439042122,-1666.49,0.00016538,2]
[403638097,1769439042131,-1666.49,0.00016564,2]
[403638098,1769439042140,-2516.84859061,0.00016576,2]
[403638099,1769439042149,-250.0,0.00016577,2]
[403638100,1769439042158,-1666.49,0.0001659,2]
[403638101,1769439042168,-1666.49,0.00016615,2]
[403638102,1769439042178,-1666.49,0.00016641,2]
[403638103,1769439042187,-1666.49,0.00016666,2]
[403638104,1769439042197,-1666.49,0.00016692,2]
[403638105,1769439042206,-1666.49,0.00016718,2]
[403638106,1769439042215,-150.0,0.00016731,2]
[403638107,1769439042225,-150.0,0.00016731,2]
[403638108,1769439042237,-3240.0,0.00016783,2]
[403638109,1769439042246,-454.62309315,0.00016884,2]
[403638110,1769439042256,-412.32,0.00016922,2]
[403638111,1769439042266,-1843.43,0.00016922,2]
[403638112,1769439042275,-150.99,0.00016922,2]
[403638113,1769439042285,-499.99,0.00016922,2]
[403638114,1769439042296,-150.99,0.00016922,2]
[403638115,1769439042306,-9999.99,0.00016922,2]
[403638116,1769439042316,-166.66,0.00016934,2]
[403638117,1769439042326,-798.0,0.00016986,2]
[403638118,1769439042335,-173.69416209,0.00016999,2]
[403638119,1769439042345,-500.0,0.00017098,2]
[403638120,1769439042355,-500.0,0.00017098,2]
[403638121,1769439042364,-500.0,0.00017098,2]
[403638122,1769439042373,-500.0,0.00017098,2]
[403638123,1769439042383,-500.0,0.00017098,2]
[403638124,1769439042392,-500.0,0.00017098,2]
[403638125,1769439042402,-500.0,0.00017098,2]
[403638126,1769439042411,-152.86742029,0.00017098,2]
[403638127,1769439042421,-500.0,0.00017098,2]
[403638128,1769439042431,-325.35451472,0.00017098,2]
[403638129,1769439042440,-500.0,0.00017098,2]
[403638130,1769439042451,-163.09240909,0.00017098,2]
[403638131,1769439042460,-308.78926471,0.00017098,2]
[403638132,1769439042469,-366.38092786,0.00017098,2]
[403638133,1769439042479,-721.12765535,0.00017099,2]
[403638134,1769439042488,-174.61919141,0.00017099,2]
[403638135,1769439042498,-705.97670987,0.00017099,2]
[403638136,1769439042507,-322.6107,0.00017099,2]
[403638137,1769439042517,-250.0,0.00017099,2]
[403638138,1769439042526,-250.0,0.00017099,2]
[403638139,1769439042535,-250.0,0.00017099,2]
[403638140,1769439042546,-250.0,0.00017099,2]
[403638141,1769439042556,-250.0,0.00017099,2]
[403638142,1769439042565,-250.0,0.00017099,2]
[403638143,1769439042574,-250.0,0.00017099,2]
[403638144,1769439042584,-250.0,0.00017099,2]
[403638145,1769439042594,-250.0,0.00017099,2]
[403638146,1769439042603,-250.0,0.00017099,2]
[403638147,1769439042612,-250.0,0.00017099,2]
[403638148,1769439042622,-250.0,0.00017099,2]
[403638149,1769439042632,-250.0,0.00017099,2]
[403638150,1769439042641,-250.0,0.00017099,2]
[403638151,1769439042651,-365.99673536,0.00017099,2]
[403638152,1769439042660,-250.0,0.00017099,2]
[403638153,1769439042670,-250.0,0.00017099,2]
[403638154,1769439042680,-250.0,0.00017099,2]
[403638155,1769439042690,-250.0,0.00017099,2]
[403638156,1769439042699,-3543.0,0.00017099,2]
[403638157,1769439042710,-250.0,0.00017099,2]
[403638158,1769439042719,-250.0,0.00017099,2]
[403638159,1769439042729,-250.0,0.00017099,2]
[403638160,1769439042738,-250.0,0.00017099,2]
[403638161,1769439042748,-250.0,0.00017099,2]
[403638162,1769439042757,-250.0,0.00017099,2]
[403638163,1769439042767,-250.0,0.00017099,2]
[403638164,1769439042776,-250.0,0.00017099,2]
[403638165,1769439042786,-250.0,0.00017099,2]
[403638166,1769439042795,-250.0,0.00017099,2]
[403638167,1769439042805,-854.2589148,0.00017099,2]
[403638168,1769439042815,-250.0,0.00017099,2]
[403638169,1769439042825,-250.0,0.00017099,2]
[403638170,1769439042834,-250.0,0.00017099,2]
[403638171,1769439042844,-250.0,0.00017099,2]
[403638172,1769439042854,-250.0,0.00017099,2]
[403638173,1769439042863,-250.0,0.00017099,2]
[403638174,1769439042873,-250.0,0.00017099,2]
[403638175,1769439042882,-313.34353873,0.00017099,2]
[403638176,1769439042891,-250.0,0.00017099,2]
[403638177,1769439042902,-250.0,0.00017099,2]
[403638178,1769439042912,-250.0,0.00017099,2]
[403638179,1769439042922,-250.0,0.00017099,2]
[403638180,1769439042931,-250.0,0.00017099,2]
[403638181,1769439042941,-500.0,0.00017099,2]
[403638182,1769439042951,-250.0,0.00017099,2]
[403638183,1769439042960,-250.0,0.00017099,2]
[403638185,1769439042970,-500.0,0.00017099,2]
[403638186,1769439042979,-578.20924308,0.00017099,2]
[403638187,1769439042990,-250.0,0.00017099,2]
[403638188,1769439043003,-250.0,0.00017099,2]
[403638189,1769439043012,-500.0,0.00017099,2]
[403638190,1769439043021,-250.0,0.00017099,2]
[403638191,1769439043031,-250.0,0.00017099,2]
[403638192,1769439043040,-500.0,0.00017099,2]
[403638193,1769439043051,-250.0,0.00017099,2]
[403638194,1769439043060,-500.0,0.00017099,2]
[403638195,1769439043071,-250.0,0.00017099,2]
[403638196,1769439043080,-250.0,0.00017099,2]
[403638197,1769439043089,-500.0,0.00017099,2]
[403638198,1769439043098,-250.0,0.00017099,2]
[403638199,1769439043108,-250.0,0.00017099,2]
[403638200,1769439043117,-500.0,0.00017099,2]
[403638201,1769439043127,-250.0,0.00017099,2]
[403638202,1769439043138,-250.0,0.00017099,2]
[403638203,1769439043147,-500.0,0.00017099,2]
[403638204,1769439043156,-250.0,0.00017099,2]
[403638205,1769439043166,-250.0,0.00017099,2]
[403638206,1769439043175,-500.0,0.00017099,2]
[403638207,1769439043185,-250.0,0.00017099,2]
[403638208,1769439043195,-500.0,0.00017099,2]
[403638209,1769439043204,-250.0,0.00017099,2]
[403638210,1769439043214,-500.0,0.00017099,2]
[403638211,1769439043224,-158.77791206,0.00017128,2]
[403638212,1769439043233,-173.69416209,0.00017224,2]
[403638213,1769439043242,-1000.0,0.0001726,2]
[403638214,1769439043252,-995.09,0.00017271,2]
[403638215,1769439043262,-1000.0,0.00017381,2]
[403638216,1769439043271,-173.69416209,0.0001745,2]
[403638217,1769439043280,-500.0,0.00017479,2]
[403638218,1769439043290,-166.66,0.00017493,2]
[403638219,1769439043300,-798.0,0.00017534,2]
[403638220,1769439043310,-1000.0,0.00017534,2]
[403638221,1769439043319,-152.72824357,0.0001764,2]
[403638222,1769439043330,-2478.935,0.0001764,2]
[403638223,1769439043339,-163.54,0.0001764,2]
[403638224,1769439043349,-181.08010149,0.00017647,2]
[403638225,1769439043359,-885.86649465,0.00017647,2]
[403638226,1769439043369,-2500.0,0.00017654,2]
[403638227,1769439043379,-150.0,0.00017699,2]
[403638228,1769439043388,-150.0,0.00017699,2]
[403638229,1769439043397,-150.0,0.00017699,2]
[403638230,1769439043407,-500.0,0.00017699,2]
[403638231,1769439043416,-500.0,0.00017699,2]
[403638232,1769439043425,-500.0,0.00017699,2]
[403638233,1769439043434,-150.0,0.00017699,2]
[403638234,1769439043443,-500.0,0.00017699,2]
[403638235,1769439043452,-500.0,0.00017699,2]